fUSD/lending_fUSD_20241121
["ID","MTS","AMOUNT","RATE_DAILY","PERIOD"]
[342914261,1732203075468,-527.83,0.00042738,18]
[342914262,1732203075485,-500.0,0.00042738,18]
[342914263,1732203075495,-840.51,0.00042738,18]
[342914264,1732203075505,-500.0,0.00042738,18]
[342914265,1732203075516,-500.0,0.00042738,18]
[342914266,1732203075526,-500.0,0.00042738,18]
[342914267,1732203075536,-500.0,0.00042738,18]
[342914268,1732203075547,-500.0,0.00042738,18]
[342914269,1732203075557,-500.0,0.00042738,18]
[342914270,1732203075567,-500.0,0.00042738,18]
[342914271,1732203075577,-587.1,0.00042738,18]
[342914272,1732203075586,-500.0,0.00042738,18]
[342914273,1732203075596,-500.0,0.00042738,18]
[342914274,1732203075606,-500.0,0.00042738,18]
[342914275,1732203075616,-500.0,0.00042738,18]
[342914276,1732203075625,-500.0,0.00042738,18]
[342914277,1732203075635,-500.0,0.00042738,18]
[342914278,1732203075644,-500.0,0.00042738,18]
[342914279,1732203075654,-500.0,0.00042738,18]
[342914280,1732203075664,-500.0,0.00042738,18]
[342914281,1732203075674,-500.0,0.00042738,18]
[342914282,1732203075683,-436.87236912,0.00042738,18]
[342914283,1732203075693,-533.37020382,0.00042738,18]
[342914284,1732203075703,-500.0,0.00042738,18]
[342914285,1732203075712,-500.0,0.00042738,18]
[342914286,1732203075726,-500.0,0.00042738,18]
[342914287,1732203075735,-500.0,0.00042738,18]
[342914288,1732203075745,-642.72,0.00042738,18]
[342914289,1732203075755,-669.32,0.00042738,18]
[342914290,1732203075765,-500.0,0.00042738,18]
[342914291,1732203075780,-500.0,0.00042738,18]
[342914292,1732203075789,-571.31294551,0.00042738,18]
[342914293,1732203075799,-695.72,0.00042738,18]
[342914294,1732203075809,-500.0,0.00042738,18]
[342914295,1732203075819,-369.24898745,0.00042738,18]
[342914296,1732203075829,-500.0,0.00042738,18]
[342914297,1732203075838,-561.21246405,0.00042738,18]
[342914298,1732203075848,-500.0,0.00042738,18]
[342914299,1732203075859,-500.0,0.00042738,18]
[342914300,1732203075870,-500.0,0.00042738,18]
[342914301,1732203075880,-500.0,0.00042738,18]
[342914302,1732203075889,-1267.04,0.00042738,18]
[342914303,1732203075899,-500.0,0.00042738,18]
[342914304,1732203075909,-948.43,0.00042738,18]
[342914305,1732203075919,-500.0,0.00042738,18]
[342914306,1732203075928,-500.0,0.00042738,18]
[342914307,1732203075938,-500.0,0.00042738,18]
[342914308,1732203075947,-500.0,0.00042738,18]
[342914309,1732203075957,-520.62,0.00042738,18]
[342914310,1732203075967,-500.0,0.00042738,18]
[342914311,1732203075980,-500.0,0.00042738,18]
[342914312,1732203075990,-377.71603842,0.00042738,18]
[342914313,1732203076000,-552.9,0.00042738,18]
[342914314,1732203076009,-500.0,0.00042738,18]
[342914315,1732203076019,-500.0,0.00042738,18]
[342914316,1732203076029,-500.0,0.00042738,18]
[342914317,1732203076038,-500.0,0.00042738,18]
[342914318,1732203076048,-500.0,0.00042738,18]
[342914319,1732203076058,-300.0,0.00042738,120]
[342914320,1732203076068,-500.0,0.00042738,18]
[342914321,1732203076078,-500.0,0.00042738,18]
[342914322,1732203076088,-500.0,0.00042738,18]
[342914323,1732203076098,-500.0,0.00042738,18]
[342914324,1732203076361,-500.0,0.00042738,18]
[342914325,1732203076384,-500.0,0.00042738,18]
[342914326,1732203076394,-500.0,0.00042738,18]
[342914327,1732203076404,-500.0,0.00042738,18]
[342914328,1732203076413,-500.0,0.00042738,18]
[342914329,1732203076423,-500.0,0.00042738,18]
[342914330,1732203076433,-500.0,0.00042738,18]
[342914331,1732203076442,-2586.7,0.00042738,18]
[342914332,1732203076452,-500.0,0.00042738,18]
[342914333,1732203076461,-500.0,0.00042738,18]
[342914334,1732203076470,-543.58,0.00042738,18]
[342914335,1732203076487,-500.0,0.00042738,18]
[342914336,1732203076497,-543.0,0.00042738,18]
[342914337,1732203076507,-661.91,0.00042738,18]
[342914338,1732203076516,-500.0,0.00042738,18]
[342914339,1732203076526,-956.88,0.00042738,18]
[342914340,1732203076536,-500.0,0.00042738,18]
[342914341,1732203076546,-525.81537518,0.00042738,18]
[342914342,1732203076555,-500.0,0.00042738,18]
[342914343,1732203076564,-887.91,0.00042738,18]
[342914344,1732203076573,-500.0,0.00042738,18]
[342914345,1732203076583,-500.0,0.00042738,18]
[342914346,1732203076593,-1615.25,0.00042738,18]
[342914347,1732203076603,-500.0,0.00042738,18]
[342914348,1732203076612,-500.0,0.00042738,18]
[342914349,1732203076622,-1481.48,0.00042738,18]
[342914350,1732203076631,-500.0,0.00042738,18]
[342914351,1732203076640,-500.0,0.00042738,18]
[342914352,1732203076650,-520.89,0.00042738,18]
[342914353,1732203076659,-514.41,0.00042738,18]
[342914354,1732203076669,-500.0,0.00042738,18]
[342914355,1732203076679,-500.0,0.00042738,18]
[342914356,1732203076689,-500.0,0.00042738,18]
[342914357,1732203076699,-500.0,0.00042738,18]
[342914358,1732203076708,-750.59,0.00042738,18]
[342914359,1732203076717,-3515.69,0.00042738,18]
[342914360,1732203076732,-500.0,0.00042738,18]
[342914361,1732203076741,-500.0,0.00042738,18]
[342914362,1732203076751,-500.0,0.00042738,18]
[342914363,1732203076761,-1845.68,0.00042738,18]
[342914364,1732203076771,-500.0,0.00042738,18]
[342914365,1732203076781,-500.0,0.00042738,18]
[342914366,1732203076792,-500.0,0.00042738,18]
[342914367,1732203076802,-500.0,0.00042738,18]
[342914368,1732203076811,-847.03,0.00042738,18]
[342914369,1732203076820,-500.0,0.00042738,18]
[342914370,1732203076830,-500.0,0.00042738,18]
[342914371,1732203076841,-500.0,0.00042738,18]
[342914372,1732203076850,-1468.49,0.00042738,18]
[342914373,1732203076861,-659.38,0.00042738,18]
[342914374,1732203076871,-500.0,0.00042738,18]
[342914375,1732203076880,-500.0,0.00042738,18]
[342914376,1732203076890,-1085.82,0.00042738,18]
[342914377,1732203076900,-820.35,0.00042738,18]
[342914378,1732203076910,-1238.1,0.00042738,18]
[342914379,1732203076920,-500.0,0.00042738,18]
[342914380,1732203076930,-500.0,0.00042738,7]
[342914381,1732203076939,-500.0,0.00042738,18]
[342914382,1732203076949,-115657.81192768,0.00042738,30]
[342914383,1732203076959,-300.0,0.00042739,120]
[342914384,1732203076968,-500.0,0.00042739,18]
[342914385,1732203076983,-500.0,0.00042739,18]
[342914386,1732203076993,-500.0,0.00042739,18]
[342914387,1732203077002,-599.52,0.00042739,60]
[342914388,1732203077012,-500.0,0.00042739,18]
[342914389,1732203077022,-731.08,0.00042739,18]
[342914390,1732203077031,-500.0,0.00042739,18]
[342914391,1732203077041,-590.97,0.00042739,18]
[342914392,1732203077050,-500.0,0.00042739,18]
[342914393,1732203077059,-402.95542164,0.00042739,18]
[342914394,1732203077069,-500.0,0.00042739,18]
[342914395,1732203077078,-500.0,0.00042739,18]
[342914396,1732203077088,-500.0,0.00042739,18]
[342914397,1732203077097,-500.0,0.00042739,18]
[342914398,1732203077107,-650.05,0.00042739,18]
[342914399,1732203077116,-500.0,0.00042739,18]
[342914400,1732203077126,-500.0,0.00042739,18]
[342914401,1732203077135,-500.0,0.00042739,18]
[342914402,1732203077145,-500.0,0.00042739,18]
[342914403,1732203077154,-300.0,0.00042739,18]
[342914404,1732203077163,-500.0,0.00042739,18]
[342914405,1732203077172,-1000.0,0.00042739,18]
[342914406,1732203077182,-579.12,0.00042739,18]
[342914407,1732203077191,-500.0,0.00042739,18]
[342914408,1732203077201,-552.53,0.00042739,18]
[342914409,1732203077210,-553.16920977,0.00042739,18]
[342914410,1732203077220,-500.0,0.00042739,18]
[342914411,1732203077236,-500.0,0.00042739,18]
[342914412,1732203077246,-329.5829032,0.00042739,18]
[342914413,1732203077255,-693.3,0.00042739,18]
[342914414,1732203077264,-639.62,0.00042739,18]
[342914415,1732203077274,-593.71,0.00042739,18]
[342914416,1732203077284,-500.0,0.00042739,18]
[342914417,1732203077294,-686.47,0.00042739,18]
[342914418,1732203077304,-756.48,0.00042739,18]
[342914419,1732203077314,-537.79,0.00042739,18]
[342914420,1732203077324,-618.97570331,0.00042739,18]
[342914421,1732203077333,-847.2,0.00042739,18]
[342914422,1732203077343,-500.0,0.00042739,18]
[342914423,1732203077353,-500.0,0.00042739,18]
[342914424,1732203077363,-598.42,0.00042739,18]
[342914425,1732203077372,-500.0,0.00042739,18]
[342914426,1732203077381,-500.0,0.00042739,18]
[342914427,1732203077391,-500.0,0.00042739,18]
[342914428,1732203077401,-838.95,0.00042739,18]
[342914429,1732203077411,-151.0,0.00042739,14]
[342914430,1732203077420,-500.0,0.00042739,18]
[342914431,1732203077430,-530.94,0.00042739,18]
[342914432,1732203077440,-744.42,0.00042739,18]
[342914433,1732203077449,-151.0,0.00042739,14]
[342914434,1732203077459,-151.0,0.00042739,14]
[342914435,1732203077468,-551.41,0.00042739,18]
[342914436,1732203077484,-500.0,0.00042739,18]
[342914437,1732203077493,-500.0,0.00042739,18]
[342914438,1732203077503,-577.75,0.00042739,18]
[342914439,1732203077512,-632.29,0.00042739,18]
[342914440,1732203077522,-500.0,0.00042739,18]
[342914441,1732203077531,-500.0,0.00042739,18]
[342914442,1732203077541,-652.24,0.00042739,18]
[342914443,1732203077551,-500.0,0.00042739,18]
[342914444,1732203077560,-500.0,0.00042739,18]
[342914445,1732203077569,-500.0,0.00042739,18]
[342914446,1732203077578,-851.64,0.00042739,18]
[342914447,1732203077588,-567.46,0.00042739,18]
[342914448,1732203077597,-500.0,0.00042739,18]
[342914449,1732203077607,-1006.3,0.00042739,18]
[342914450,1732203077616,-500.0,0.00042739,18]
[342914451,1732203077626,-500.0,0.00042739,18]
[342914452,1732203077635,-500.0,0.00042739,18]
[342914453,1732203077645,-500.0,0.00042739,18]
[342914454,1732203077655,-500.0,0.00042739,18]
[342914455,1732203077664,-614.6,0.00042739,18]
[342914456,1732203077674,-500.0,0.00042739,18]
[342914457,1732203077683,-917.1,0.00042739,18]
[342914458,1732203077692,-795.12,0.00042739,18]
[342914459,1732203077703,-525.37,0.00042739,18]
[342914460,1732203077714,-953.17,0.00042739,18]
[342914461,1732203077727,-500.0,0.00042739,18]
[342914462,1732203077737,-500.0,0.00042739,18]
[342914463,1732203077746,-993.79,0.00042739,18]
[342914464,1732203077755,-879.52,0.00042739,18]
[342914465,1732203077764,-500.0,0.00042739,18]
[342914466,1732203077775,-500.0,0.00042739,18]
[342914467,1732203077784,-1023.5,0.00042739,18]
[342914468,1732203077797,-771.47,0.00042739,18]
[342914469,1732203077806,-551.74,0.00042739,18]
[342914470,1732203077817,-560.57,0.00042739,18]
[342914471,1732203077826,-500.0,0.00042739,18]
[342914472,1732203077835,-640.52,0.00042739,18]
[342914473,1732203077844,-500.0,0.00042739,18]
[342914474,1732203077853,-1083.77,0.00042739,18]
[342914475,1732203077863,-500.0,0.00042739,18]
[342914476,1732203077872,-500.0,0.00042739,18]
[342914477,1732203077882,-500.0,0.00042739,18]
[342914478,1732203077892,-500.0,0.00042739,18]
[342914479,1732203077902,-500.0,0.00042739,18]
[342914480,1732203077911,-1588.78,0.00042739,18]
[342914481,1732203077920,-151.0,0.00042739,14]
[342914482,1732203077929,-1105.86,0.00042739,18]
[342914483,1732203077938,-500.0,0.00042739,18]
[342914484,1732203077947,-151.0,0.00042739,14]
[342914485,1732203077958,-150.0,0.00042739,2]
[342914486,1732203077967,-500.0,0.00042739,18]
[342914487,1732203077982,-974.33,0.00042739,18]
[342914488,1732203077991,-500.0,0.00042739,18]
[342914489,1732203078001,-500.0,0.00042739,18]
[342914490,1732203078010,-500.0,0.00042739,18]
[342914491,1732203078020,-500.0,0.00042739,18]
[342914492,1732203078029,-500.0,0.00042739,18]
[342914493,1732203078039,-1277.05,0.00042739,18]
[342914494,1732203078048,-500.0,0.00042739,18]
[342914495,1732203078058,-500.0,0.00042739,18]
[342914496,1732203078067,-500.0,0.00042739,18]
[342914497,1732203078077,-786.73,0.00042739,18]
[342914498,1732203078087,-500.0,0.00042739,18]
[342914499,1732203078096,-413.45988,0.00042739,14]
[342914500,1732203078105,-500.0,0.00042739,18]
[342914501,1732203078115,-500.0,0.00042739,18]
[342914502,1732203078124,-413.45988,0.00042739,14]
[342914503,1732203078133,-500.0,0.00042739,18]
[342914504,1732203078143,-500.0,0.00042739,18]
[342914505,1732203078152,-916.52,0.00042739,18]
[342914506,1732203078162,-500.0,0.00042739,18]
[342914507,1732203078171,-500.0,0.00042739,18]
[342914508,1732203078181,-1641.18,0.00042739,18]
[342914509,1732203078190,-520.1,0.00042739,18]
[342914510,1732203078199,-669.71,0.00042739,18]
[342914511,1732203078208,-533.76,0.00042739,18]
[342914512,1732203078218,-650.4,0.00042739,18]
[342914513,1732203078232,-1305.08,0.00042739,18]
[342914514,1732203078242,-500.0,0.00042739,120]
[342914515,1732203078252,-650.25,0.00042739,18]
[342914516,1732203078261,-500.0,0.00042739,18]
[342914517,1732203078272,-500.0,0.00042739,18]
[342914518,1732203078282,-926.39,0.00042739,18]
[342914519,1732203078293,-731.05,0.00042739,18]
[342914520,1732203078302,-500.0,0.00042739,18]
[342914521,1732203078312,-500.0,0.00042739,18]
[342914522,1732203078322,-500.0,0.00042739,18]
[342914523,1732203078332,-500.0,0.00042739,18]
[342914524,1732203078342,-500.0,0.00042739,18]
[342914525,1732203078353,-500.0,0.00042739,18]
[342914526,1732203078363,-624.75,0.00042739,18]
[342914527,1732203078373,-500.0,0.00042739,18]
[342914528,1732203078383,-500.0,0.00042739,18]
[342914529,1732203078393,-812.55,0.00042739,18]
[342914530,1732203078403,-500.0,0.00042739,18]
[342914531,1732203078414,-720.96,0.00042739,18]
[342914532,1732203078425,-478.23858106,0.00042739,18]
[342914533,1732203078435,-1901.24,0.00042739,18]
[342914534,1732203078445,-500.0,0.00042739,18]
[342914535,1732203078455,-500.0,0.00042739,18]
[342914536,1732203078466,-500.0,0.00042739,18]
[342914537,1732203078480,-10680.0,0.00042739,18]
[342914538,1732203078491,-765.15,0.00042739,18]
[342914539,1732203078501,-506.65,0.00042739,18]
[342914540,1732203078511,-797.84,0.00042739,18]
[342914541,1732203078522,-500.0,0.00042739,18]
[342914542,1732203078532,-576.03,0.00042739,18]
[342914543,1732203078543,-865.82,0.00042739,18]
[342914544,1732203078553,-500.0,0.00042739,18]
[342914545,1732203078563,-500.0,0.00042739,18]
[342914546,1732203078573,-1451.99,0.00042739,18]
[342914547,1732203078582,-500.0,0.00042739,18]
[342914548,1732203078592,-500.0,0.00042739,18]
[342914549,1732203078602,-500.0,0.00042739,18]
[342914550,1732203078611,-1607.31,0.00042739,18]
[342914551,1732203078621,-667.34,0.00042739,18]
[342914552,1732203078630,-1658.0,0.00042739,18]
[342914553,1732203078639,-500.0,0.00042739,18]
[342914554,1732203078648,-153.60068691,0.00042739,18]
[342914555,1732203078658,-365.22782916,0.00042739,18]
[342914556,1732203078668,-1606.84,0.00042739,18]
[342914557,1732203078677,-1268.07,0.00042739,18]
[342914558,1732203078687,-537.46,0.00042739,18]
[342914559,1732203078697,-2509.52,0.00042739,18]
[342914560,1732203078707,-500.0,0.00042739,18]
[342914561,1732203078717,-803.03,0.00042739,18]
[342914562,1732203078797,-500.0,0.00042739,18]
[342914563,1732203078807,-448.0,0.00042739,18]
[342914564,1732203078820,-996.26,0.00042739,18]
[342914565,1732203078831,-3353.2,0.00042739,18]
[342914566,1732203078841,-500.0,0.00042739,18]
[342914567,1732203078851,-806.82,0.00042739,18]
[342914568,1732203078861,-623.97,0.00042739,18]
[342914569,1732203078871,-500.0,0.00042739,18]
[342914570,1732203078881,-500.0,0.00042739,7]
[342914571,1732203078890,-500.0,0.00042739,18]
[342914572,1732203078900,-500.0,0.00042739,18]
[342914573,1732203078910,-500.0,0.00042739,18]
[342914574,1732203078919,-1070.68,0.00042739,18]
[342914575,1732203078930,-1008.71,0.00042739,18]
[342914576,1732203078939,-500.0,0.00042739,18]
[342914577,1732203078949,-930.53,0.00042739,18]
[342914578,1732203078959,-500.0,0.00042739,18]
[342914579,1732203078977,-988.17,0.00042739,18]
[342914580,1732203078988,-443.84674766,0.00042739,18]
[342914581,1732203078998,-500.0,0.00042739,18]
[342914582,1732203079008,-500.0,0.00042739,18]
[342914583,1732203079018,-500.0,0.00042739,18]
[342914584,1732203079028,-1231.05,0.00042739,18]
[342914585,1732203079038,-3923.09,0.00042739,18]
[342914586,1732203079048,-1325.85,0.00042739,18]
[342914587,1732203079058,-506.34,0.00042739,18]
[342914588,1732203079068,-613.27,0.00042739,18]
[342914589,1732203079077,-642.03,0.00042739,18]
[342914590,1732203079087,-2493.49,0.00042739,18]
[342914591,1732203079096,-951.77,0.00042739,18]
[342914592,1732203079106,-1095.88,0.00042739,18]
[342914593,1732203079115,-500.0,0.00042739,18]
[342914594,1732203079126,-1342.59,0.00042739,18]
[342914595,1732203079136,-1258.46,0.00042739,18]
[342914596,1732203079147,-831.99,0.00042739,18]
[342914597,1732203079156,-500.0,0.00042739,18]
[342914598,1732203079167,-825.55,0.00042739,18]
[342914599,1732203079177,-2436.07,0.00042739,18]
[342914600,1732203079187,-1517.83,0.00042739,18]
[342914601,1732203079197,-1140.98,0.00042739,18]
[342914602,1732203079207,-500.0,0.00042739,18]
[342914603,1732203079218,-500.0,0.00042739,18]
[342914604,1732203079232,-715.65,0.00042739,18]
[342914605,1732203079242,-532.56,0.00042739,18]
[342914606,1732203079252,-1429.85,0.00042739,18]
[342914607,1732203079263,-882.47,0.00042739,18]
[342914608,1732203079274,-4581.34,0.00042739,18]
[342914609,1732203079284,-673.52,0.00042739,7]
[342914610,1732203079295,-3066.84,0.00042739,18]
[342914611,1732203079305,-537.67,0.00042739,18]
[342914612,1732203079315,-500.0,0.00042739,18]
[342914613,1732203079325,-500.0,0.00042739,18]
[342914614,1732203079335,-500.0,0.00042739,18]
[342914615,1732203079345,-500.0,0.00042739,18]
[342914616,1732203079355,-597.5,0.00042739,18]
[342914617,1732203079365,-2272.21,0.00042739,18]
[342914618,1732203079376,-500.0,0.00042739,18]
[342914619,1732203079385,-1140.96,0.00042739,18]
[342914620,1732203079395,-500.0,0.00042739,18]
[342914621,1732203079405,-1695.24,0.00042739,18]
[342914622,1732203079415,-9426.66,0.00042739,2]
[342914623,1732203079425,-2207.11,0.00042739,18]
[342914624,1732203079435,-500.0,0.00042739,18]
[342914625,1732203079445,-772.2,0.00042739,18]
[342914626,1732203079455,-504.29,0.00042739,18]
[342914627,1732203079466,-500.0,0.00042739,18]
[342914628,1732203079484,-500.0,0.00042739,18]
[342914629,1732203079495,-638.86,0.00042739,18]
[342914630,1732203079505,-1207.24,0.00042739,18]
[342914631,1732203079515,-13746.66,0.00042739,18]
[342914632,1732203079526,-822.02,0.00042739,18]
[342914633,1732203079536,-500.0,0.00042739,18]
[342914634,1732203079546,-500.0,0.00042739,18]
[342914635,1732203079556,-701.3,0.00042739,18]
[342914636,1732203079565,-500.0,0.00042739,18]
[342914637,1732203079575,-4447.59,0.00042739,18]
[342914638,1732203079585,-500.0,0.00042739,18]
[342914639,1732203079594,-500.0,0.00042739,18]
[342914640,1732203079603,-1274.46,0.00042739,18]
[342914641,1732203079613,-667.86,0.00042739,18]
[342914642,1732203079622,-965.8,0.00042739,18]
[342914643,1732203079631,-500.0,0.00042739,18]
[342914644,1732203079641,-654.42,0.00042739,18]
[342914645,1732203079651,-2707.92,0.00042739,18]
[342914646,1732203079661,-2163.44,0.00042739,18]
[342914647,1732203079671,-808.65,0.00042739,18]
[342914648,1732203079681,-343996.0,0.0004274,45]
[342914649,1732203079691,-299.488716,0.0004274,14]
[342914650,1732203079701,-151.0,0.0004274,14]
[342914651,1732203079710,-151.0,0.0004274,14]
[342914652,1732203079720,-151.0,0.0004274,14]
[342914653,1732203079736,-151.0,0.0004274,14]
[342914654,1732203079745,-413.45988,0.0004274,14]
[342914655,1732203079754,-413.45988,0.0004274,14]
[342914656,1732203079764,-151.0,0.0004274,14]
[342914657,1732203079779,-151.0,0.0004274,14]
[342914658,1732203079789,-151.0,0.0004274,14]
[342914659,1732203079799,-151.0,0.0004274,14]
[342914660,1732203079809,-151.0,0.0004274,14]
[342914661,1732203079819,-151.0,0.0004274,14]
[342914662,1732203079829,-151.0,0.0004274,14]
[342914663,1732203079839,-151.0,0.0004274,14]
[342914664,1732203079848,-151.0,0.0004274,14]
[342914665,1732203079858,-151.0,0.0004274,14]
[342914666,1732203079868,-151.0,0.0004274,14]
[342914667,1732203079877,-151.0,0.0004274,14]
[342914668,1732203079886,-151.0,0.0004274,14]
[342914669,1732203079897,-80000.0,0.0004275,120]
[342914670,1732203079909,-300.0,0.00042759,120]
[342914671,1732203079921,-300000.0,0.0004276,90]
[342914672,1732203079931,-1490.8760964,0.00042771,2]
[342914673,1732203079941,-300.0,0.00042779,120]
[342914674,1732203079950,-167658.97761477,0.0004278,75]
[342914675,1732203080292,-21620.191689,0.0004278,75]
[342914676,1732203080561,-996.36,0.0004278,75]
[342914677,1732203080573,-45705.63896183,0.0004278,75]
[342914678,1732203080596,-500.0,0.00042464,18]
[342914679,1732203080606,-12534.15751363,0.0004278,75]
[342914680,1732203080618,-1484.67422077,0.0004278,75]
[342914681,1732203080627,-151.0,0.0004278,14]
[342914682,1732203080636,-151.0,0.0004278,14]
[342914683,1732203080646,-151.0,0.0004278,14]
[342914684,1732203080655,-151.0,0.0004278,14]
[342914685,1732203080664,-413.45988,0.0004278,14]
[342914686,1732203080674,-413.45988,0.0004278,14]
[342914687,1732203080683,-2293.35039868,0.00042799,2]
[342914688,1732203081398,-1000.0,0.000315,2]
[342914689,1732203081407,-943.23061194,0.000315,2]
[342914690,1732203081433,-56.76938806,0.000315,2]
[342914691,1732203081442,-437.75061194,0.000315,2]
[342914692,1732203081453,-562.24938806,0.000315,2]
[342914693,1732203081462,-1000.0,0.000315,2]
[342914694,1732203081472,-1000.0,0.000315,2]
[342914695,1732203081491,-313.0,0.000315,2]
[342914696,1732203081500,-818.694,0.00041497,2]
[342914697,1732203081509,-151.0,0.0004188,14]
[342914698,1732203081523,-500.0,0.00041916,18]
[342914699,1732203081533,-500.0,0.0004219,18]
[342914700,1732203081543,-542.0806193,0.00042191,18]
[342914701,1732203081551,-500.0,0.00042464,18]
[342914702,1732203081560,-500.0,0.00042738,18]
[342914703,1732203081569,-500.0,0.00042738,18]
[342914704,1732203081578,-151.0,0.0004274,14]
[342914705,1732203081588,-8981.64627237,0.00042799,2]
[342914706,1732203081598,-445.20272027,0.000428,60]
[342914707,1732203081643,-3728.25631624,0.000428,60]
[342914708,1732203081655,-442.677,0.000428,60]
[342914709,1732203081670,-2146.63762708,0.000397,2]
[342914710,1732203081679,-12606.11337534,0.000428,60]
[342914711,1732203081867,-47828.39473194,0.000428,60]
[342914712,1732203081876,-344.35909118,0.000428,30]
[342914713,1732203081892,-1022.52773782,0.000428,30]
[342914714,1732203081901,-164.329807,0.000428,30]
[342914715,1732203081912,-4171.79051709,0.000428,120]
[342914716,1732203081922,-2900.0,0.000428,15]
[342914717,1732203081933,-1102.8777081,0.00042801,2]
[342914718,1732203081943,-150.01,0.00042809,2]
[342914719,1732203081953,-153.644,0.00042821,2]
[342914720,1732203081963,-300.0,0.00042829,120]
[342914721,1732203081973,-43972.48397471,0.0004283,60]
[342914722,1732203082009,-3799.77012458,0.0004283,60]
[342914723,1732203082022,-2526.03045214,0.0004283,60]
[342914724,1732203082034,-3811.20826415,0.0004283,60]
[342914725,1732203082046,-10432.64450008,0.0004283,60]
[342914726,1732203082075,-6630.2969656,0.0004283,60]
[342914727,1732203082089,-14070.22359935,0.0004283,60]
[342914728,1732203082101,-96073.66221169,0.0004283,60]
[342914729,1732203082113,-5584.8,0.0004283,60]
[342914730,1732203082223,-20.89029331,0.0004283,60]
[342914731,1732203082635,-319.55366678,0.00023922,2]
[342914732,1732203082644,-150.0,0.00041497,2]
[342914733,1732203082654,-4659.06231605,0.0004283,60]
[342914734,1732203082754,-108418.92729834,0.0004283,60]
[342914735,1732203082764,-292.5209606,0.00042877,30]
[342914736,1732203082778,-1566.62952584,0.000429,15]
[342914737,1732203082790,-1209.55648856,0.000429,15]
[342914738,1732203082802,-123.8139856,0.000429,15]
[342914739,1732203082811,-1247.82,0.00042911,2]
[342914740,1732203082822,-625.21025,0.00042956,2]
[342914741,1732203082832,-889.0387644,0.00042961,2]
[342914742,1732203082844,-389.0931387,0.00042961,2]
[342914743,1732203082854,-95.8188613,0.00042961,2]
[342914744,1732203082866,-308.19422446,0.00042961,2]
[342914745,1732203082879,-1266.63787594,0.00042961,2]
[342914746,1732203082890,-1453.386098,0.00042971,2]
[342914747,1732203082901,-1628.640293,0.00042983,2]
[342914748,1732203082912,-240.78724713,0.0004299,30]
[342914749,1732203082923,-1826.60156113,0.0004299,30]
[342914769,1732203935150,-3433.0,0.00015,2]
[342914770,1732203935171,-316.53455321,0.00015142,2]
[342914771,1732204036148,-217.18840158,0.00015142,2]
[342914772,1732204036168,-2154.453105,0.00015242,2]
[342914773,1732204036203,-102.50493885,0.00015242,2]
[342914774,1732204036225,-154.0,0.00015342,2]
[342914775,1732204036245,-14.17575755,0.00015342,2]
[342914776,1732204092604,-800.0,0.00026986,120]
[342914777,1732204092634,-584.54,0.00026986,120]
[342914778,1732204092660,-151.0,0.0003,120]
[342914779,1732204092698,-336.95,0.0003313,120]